[Event "Live Chess"]
[Site "Chess.com"]
[Date "2023.05.20"]
[Round "-"]
[White "Tilbs_12"]
[Black "1600x"]
[Result "1-0"]
[WhiteElo "1576"]
[BlackElo "1557"]
[TimeControl "300"]
[EndTime "11:17:00 PDT"]
[Termination "Tilbs_12 won by resignation"]

1. e4 {[%clk 0:04:56.7]} 1... d5 {[%clk 0:04:57.2]} 2. exd5 {[%clk 0:04:52.3]}
2... Qxd5 {[%clk 0:04:55.6]} 3. Nc3 {[%clk 0:04:51.5]} 3... Qe5+ {[%clk
0:04:53.2]} 4. Be2 {[%clk 0:04:48.8]} 4... c6 {[%clk 0:04:51.7]} 5. Nf3 {[%clk
0:04:47.6]} 5... Qc7 {[%clk 0:04:50.1]} 6. O-O {[%clk 0:04:46.1]} 6... Nd7
{[%clk 0:04:48.4]} 7. Re1 {[%clk 0:04:45.2]} 7... h6 {[%clk 0:04:45]} 8. Bc4
{[%clk 0:04:44.2]} 8... g5 {[%clk 0:04:43.8]} 9. d4 {[%clk 0:04:41.2]} 9... Bg7
{[%clk 0:04:42.9]} 10. Be3 {[%clk 0:04:37.1]} 10... b5 {[%clk 0:04:37.3]} 11.
Bb3 {[%clk 0:04:35.7]} 11... Ngf6 {[%clk 0:04:34.5]} 12. a4 {[%clk 0:04:28.1]}
12... a6 {[%clk 0:04:28.4]} 13. axb5 {[%clk 0:04:07.6]} 13... Bb7 {[%clk
0:04:26.7]} 14. bxc6 {[%clk 0:04:00.6]} 14... Bxc6 {[%clk 0:04:25.5]} 15. d5
{[%clk 0:03:55.3]} 15... Nxd5 {[%clk 0:04:09.3]} 16. Bxd5 {[%clk 0:03:53]} 16...
Bxc3 {[%clk 0:04:07.2]} 17. bxc3 {[%clk 0:03:51.1]} 17... e6 {[%clk 0:04:05.7]}
18. Bxc6 {[%clk 0:03:44.1]} 18... O-O-O {[%clk 0:04:02.7]} 19. Rxa6 {[%clk
0:03:34.6]} 19... Nb8 {[%clk 0:04:00.8]} 20. Ra7 {[%clk 0:03:25.2]} 20... Rxd1
{[%clk 0:03:55.5]} 21. Rxc7+ {[%clk 0:03:23.9]} 21... Kxc7 {[%clk 0:03:54.6]}
22. Rxd1 {[%clk 0:03:21.9]} 22... Nxc6 {[%clk 0:03:51.7]} 23. Nd4 {[%clk
0:03:14]} 23... Nxd4 {[%clk 0:03:43.8]} 24. Bxd4 {[%clk 0:03:12.9]} 24... Rb8
{[%clk 0:03:36.5]} 25. Ra1 {[%clk 0:03:09.5]} 25... Rb2 {[%clk 0:03:34]} 26. g3
{[%clk 0:03:07.1]} 26... Kd6 {[%clk 0:03:31.5]} 27. Ra7 {[%clk 0:03:03.3]} 27...
e5 {[%clk 0:03:26.9]} 28. Be3 {[%clk 0:02:53.8]} 28... Rxc2 {[%clk 0:03:23]} 29.
Ra6+ {[%clk 0:02:52.9]} 29... Kd5 {[%clk 0:03:21.2]} 30. Rxh6 {[%clk 0:02:51.1]}
30... g4 {[%clk 0:03:18.4]} 31. Rf6 {[%clk 0:02:47.5]} 31... Rxc3 {[%clk
0:03:16.5]} 32. Rxf7 {[%clk 0:02:46]} 32... Ke4 {[%clk 0:03:13.9]} 33. Kg2
{[%clk 0:02:38.9]} 33... Rc4 {[%clk 0:03:12.5]} 34. Rg7 {[%clk 0:02:34.8]} 34...
Kf5 {[%clk 0:03:09.6]} 35. Rg5+ {[%clk 0:02:29.1]} 35... Ke6 {[%clk 0:03:08.1]}
36. h3 {[%clk 0:02:25.8]} 36... gxh3+ {[%clk 0:03:05.9]} 37. Kxh3 {[%clk
0:02:24.4]} 37... Kf6 {[%clk 0:03:04.5]} 38. Rg8 {[%clk 0:02:14.4]} 38... Ra4
{[%clk 0:03:02.5]} 39. g4 {[%clk 0:02:09.9]} 39... Rb4 {[%clk 0:02:59.1]} 40.
Kh4 {[%clk 0:02:06.9]} 40... Ra4 {[%clk 0:02:55.7]} 41. Kh5 {[%clk 0:02:05.4]}
41... Kf7 {[%clk 0:02:53.9]} 42. Rb8 {[%clk 0:02:03.7]} 42... Ra1 {[%clk
0:02:51.3]} 43. Kg5 {[%clk 0:01:59.9]} 43... Ke6 {[%clk 0:02:48.4]} 44. Rb6+
{[%clk 0:01:57.4]} 44... Kf7 {[%clk 0:02:46.8]} 45. Kf5 {[%clk 0:01:56.6]} 45...
Ke7 {[%clk 0:02:40.4]} 46. g5 {[%clk 0:01:55.1]} 46... Ra8 {[%clk 0:02:38]} 47.
Kxe5 {[%clk 0:01:51.1]} 47... Kf8 {[%clk 0:02:35.2]} 48. Kf5 {[%clk 0:01:46.2]}
48... Ke7 {[%clk 0:02:32.7]} 49. Kg4 {[%clk 0:01:45.2]} 49... Kd7 {[%clk
0:02:30.9]} 50. f4 {[%clk 0:01:44.4]} 50... Re8 {[%clk 0:02:28.1]} 51. Bf2
{[%clk 0:01:37]} 51... Ra8 {[%clk 0:02:23.8]} 52. g6 {[%clk 0:01:34.2]} 52...
Kc7 {[%clk 0:02:21.8]} 53. Re6 {[%clk 0:01:28.4]} 53... Kd7 {[%clk 0:02:19.5]}
54. f5 {[%clk 0:01:27.1]} 54... Rd8 {[%clk 0:02:17.3]} 55. Kg5 {[%clk
0:01:25.7]} 55... Rh8 {[%clk 0:02:15.5]} 56. Bd4 {[%clk 0:01:23.7]} 56... Rf8
{[%clk 0:02:13.6]} 57. Ra6 {[%clk 0:01:20]} 57... Kc7 {[%clk 0:02:10.5]} 58. f6
{[%clk 0:01:19]} 58... Kb7 {[%clk 0:02:09]} 59. Re6 {[%clk 0:01:17.5]} 59... Rc8
{[%clk 0:02:06.7]} 60. g7 {[%clk 0:01:15.6]} 60... Rc2 {[%clk 0:02:04.7]} 61. f7
{[%clk 0:01:09.2]} 61... Rg2+ {[%clk 0:02:02.8]} 62. Kf6 {[%clk 0:01:08.6]}
62... Rh2 {[%clk 0:02:01.3]} 63. g8=Q {[%clk 0:01:06.1]} 63... Rh6+ {[%clk
0:01:59.7]} 64. Ke7 {[%clk 0:01:04.9]} 64... Rxe6+ {[%clk 0:01:55.8]} 65. Kxe6
{[%clk 0:01:02.9]} 65... Kc6 {[%clk 0:01:55]} 66. Qc8+ {[%clk 0:00:59.5]} 66...
Kb5 {[%clk 0:01:53.8]} 67. Kd5 {[%clk 0:00:57.6]} 67... Kb4 {[%clk 0:01:52.7]}
68. Bg7 {[%clk 0:00:55.8]} 68... Ka5 {[%clk 0:01:51.7]} 69. Qb8 {[%clk 0:00:53]}
69... Ka4 {[%clk 0:01:49.9]} 70. Kc4 {[%clk 0:00:51.6]} 1-0

[Event "Live Chess"]
[Site "Chess.com"]
[Date "2023.05.20"]
[Round "-"]
[White "wadsy27"]
[Black "Ocelot32"]
[Result "1-0"]
[WhiteElo "2588"]
[BlackElo "1396"]
[TimeControl "300"]
[EndTime "11:17:03 PDT"]
[Termination "wadsy27 won by resignation"]

1. d4 {[%clk 0:04:58.5]} 1... d5 {[%clk 0:04:56.1]} 2. c4 {[%clk 0:04:56.2]}
2... dxc4 {[%clk 0:04:54.7]} 3. Nf3 {[%clk 0:04:55.2]} 3... a6 {[%clk
0:04:48.1]} 4. e3 {[%clk 0:04:52.9]} 4... Nf6 {[%clk 0:04:46]} 5. Bxc4 {[%clk
0:04:51.3]} 5... e6 {[%clk 0:04:44.4]} 6. O-O {[%clk 0:04:49]} 6... Bd6 {[%clk
0:04:40.4]} 7. Nc3 {[%clk 0:04:45]} 7... O-O {[%clk 0:04:39]} 8. e4 {[%clk
0:04:42.6]} 8... Bb4 {[%clk 0:04:30]} 9. e5 {[%clk 0:04:39]} 9... Bxc3 {[%clk
0:04:26.2]} 10. bxc3 {[%clk 0:04:37.6]} 10... Nd5 {[%clk 0:04:24.1]} 11. Bd3
{[%clk 0:04:36.6]} 11... f6 {[%clk 0:04:16.7]} 12. exf6 {[%clk 0:04:30.1]} 12...
Qxf6 {[%clk 0:04:12.3]} 13. Ng5 {[%clk 0:04:20.6]} 13... Qe7 {[%clk 0:03:33.6]}
14. Bxh7+ {[%clk 0:04:15.1]} 14... Kh8 {[%clk 0:03:31.9]} 15. Qh5 {[%clk
0:04:09.2]} 15... Nf6 {[%clk 0:03:26.3]} 16. Qh4 {[%clk 0:04:07.9]} 1-0

[Event "Live Chess"]
[Site "Chess.com"]
[Date "2023.05.20"]
[Round "-"]
[White "Tushinskiy"]
[Black "GMHarry-youtube"]
[Result "1-0"]
[WhiteElo "2116"]
[BlackElo "2104"]
[TimeControl "300"]
[EndTime "11:17:19 PDT"]
[Termination "Tushinskiy won by checkmate"]

1. d4 {[%clk 0:04:57]} 1... Nf6 {[%clk 0:04:58.9]} 2. c3 {[%clk 0:04:56.9]} 2...
g6 {[%clk 0:04:58.6]} 3. Nf3 {[%clk 0:04:56.8]} 3... Bg7 {[%clk 0:04:58.1]} 4.
Bf4 {[%clk 0:04:56.7]} 4... O-O {[%clk 0:04:57.5]} 5. Bg3 {[%clk 0:04:56.6]}
5... c5 {[%clk 0:04:57]} 6. Nbd2 {[%clk 0:04:56.3]} 6... cxd4 {[%clk 0:04:56.9]}
7. cxd4 {[%clk 0:04:56]} 7... d5 {[%clk 0:04:56.3]} 8. e3 {[%clk 0:04:55.6]}
8... Nc6 {[%clk 0:04:56.1]} 9. Bd3 {[%clk 0:04:54.7]} 9... Nd7 {[%clk
0:04:53.9]} 10. Rc1 {[%clk 0:04:53.4]} 10... e5 {[%clk 0:04:52.6]} 11. dxe5
{[%clk 0:04:53.3]} 11... Ncxe5 {[%clk 0:04:51.8]} 12. Nxe5 {[%clk 0:04:52.4]}
12... Nxe5 {[%clk 0:04:50.7]} 13. Bb1 {[%clk 0:04:50.4]} 13... Be6 {[%clk
0:04:47.7]} 14. O-O {[%clk 0:04:49.3]} 14... Rc8 {[%clk 0:04:46]} 15. b3 {[%clk
0:04:44.9]} 15... Qd7 {[%clk 0:04:40.1]} 16. Nf3 {[%clk 0:04:42.2]} 16... Nxf3+
{[%clk 0:04:36.2]} 17. gxf3 {[%clk 0:04:42.1]} 17... Bh3 {[%clk 0:04:33.9]} 18.
Re1 {[%clk 0:04:36.1]} 18... f5 {[%clk 0:04:27.6]} 19. Qd3 {[%clk 0:04:22.9]}
19... d4 {[%clk 0:04:16]} 20. Rxc8 {[%clk 0:04:10.5]} 20... Rxc8 {[%clk
0:04:12.2]} 21. Rd1 {[%clk 0:04:06]} 21... Rc3 {[%clk 0:04:10.2]} 22. Qxc3
{[%clk 0:04:01.2]} 22... f4 {[%clk 0:04:04.1]} 23. Qc4+ {[%clk 0:03:58.3]} 23...
Kh8 {[%clk 0:04:00.8]} 24. Bxf4 {[%clk 0:03:55.3]} 24... Qe7 {[%clk 0:03:40.1]}
25. Be4 {[%clk 0:03:49.3]} 25... Be5 {[%clk 0:03:37.1]} 26. Bxe5+ {[%clk
0:03:46.8]} 26... Qxe5 {[%clk 0:03:34.7]} 27. Qxd4 {[%clk 0:03:45.8]} 27... Qxd4
{[%clk 0:03:33]} 28. Rxd4 {[%clk 0:03:45.7]} 28... Kg7 {[%clk 0:03:31.8]} 29.
Bxb7 {[%clk 0:03:43.6]} 29... Kh6 {[%clk 0:03:31.7]} 30. f4 {[%clk 0:03:42.2]}
30... Kh5 {[%clk 0:03:31.6]} 31. Bf3+ {[%clk 0:03:37.8]} 31... Bg4 {[%clk
0:03:29]} 32. Bg2 {[%clk 0:03:37.2]} 32... Kh4 {[%clk 0:03:25.6]} 33. Rd5 {[%clk
0:03:35.3]} 33... a5 {[%clk 0:03:24]} 34. f3 {[%clk 0:03:32.4]} 34... Bh5 {[%clk
0:03:22.1]} 35. Rxa5 {[%clk 0:03:31]} 35... h6 {[%clk 0:03:19.8]} 36. Kf2 {[%clk
0:03:30.3]} 36... g5 {[%clk 0:03:17.2]} 37. fxg5 {[%clk 0:03:27.2]} 37... hxg5
{[%clk 0:03:17.1]} 38. f4 {[%clk 0:03:26]} 38... gxf4 {[%clk 0:02:58.4]} 39.
exf4 {[%clk 0:03:25.9]} 39... Bg6 {[%clk 0:02:45.7]} 40. Rg5 {[%clk 0:03:23.4]}
40... Bb1 {[%clk 0:02:37.6]} 41. a4 {[%clk 0:03:21.8]} 41... Bd3 {[%clk
0:02:34]} 42. Bf3 {[%clk 0:03:20.5]} 42... Bg6 {[%clk 0:02:29]} 43. a5 {[%clk
0:03:18.8]} 43... Be8 {[%clk 0:02:26.9]} 44. a6 {[%clk 0:03:18]} 44... Kh3
{[%clk 0:02:23.6]} 45. a7 {[%clk 0:03:13.3]} 45... Bd7 {[%clk 0:02:15.1]} 46.
a8=Q {[%clk 0:03:07.9]} 46... Bg4 {[%clk 0:02:15]} 47. Qh8+ {[%clk 0:03:04.8]}
47... Bh5 {[%clk 0:02:13.3]} 48. Qxh5# {[%clk 0:03:03.8]} 1-0

[Event "Live Chess"]
[Site "Chess.com"]
[Date "2023.05.20"]
[Round "-"]
[White "JoeyCage"]
[Black "toog"]
[Result "1-0"]
[WhiteElo "2319"]
[BlackElo "2613"]
[TimeControl "300"]
[EndTime "11:17:22 PDT"]
[Termination "JoeyCage won by resignation"]

1. e4 {[%clk 0:04:55.3]} 1... e5 {[%clk 0:04:50.7]} 2. Nf3 {[%clk 0:04:54.2]}
2... Nc6 {[%clk 0:04:34.8]} 3. Bb5 {[%clk 0:04:52.5]} 3... a6 {[%clk 0:04:33]}
4. Bxc6 {[%clk 0:04:51.4]} 4... dxc6 {[%clk 0:04:31.4]} 5. d4 {[%clk 0:04:51.3]}
5... exd4 {[%clk 0:04:29.6]} 6. Qxd4 {[%clk 0:04:50.4]} 6... Qxd4 {[%clk
0:04:28]} 7. Nxd4 {[%clk 0:04:49.5]} 7... c5 {[%clk 0:04:27.9]} 8. Ne2 {[%clk
0:04:48.1]} 8... Nf6 {[%clk 0:04:23.6]} 9. Nbc3 {[%clk 0:04:45.4]} 9... Bd7
{[%clk 0:04:13.9]} 10. Bf4 {[%clk 0:04:43.1]} 10... O-O-O {[%clk 0:04:09.6]} 11.
O-O-O {[%clk 0:04:41.7]} 11... Be7 {[%clk 0:04:04.4]} 12. f3 {[%clk 0:04:36.4]}
12... Rhe8 {[%clk 0:04:01.1]} 13. g4 {[%clk 0:04:30.6]} 13... Be6 {[%clk
0:03:59.7]} 14. h4 {[%clk 0:04:25.2]} 14... b5 {[%clk 0:03:50.8]} 15. Be3 {[%clk
0:03:56.3]} 15... Kb7 {[%clk 0:03:46]} 16. Nf4 {[%clk 0:03:49.3]} 16... Bc8
{[%clk 0:03:43.8]} 17. Nfd5 {[%clk 0:03:46.7]} 17... Nxd5 {[%clk 0:03:41.3]} 18.
Nxd5 {[%clk 0:03:45.7]} 18... Bd6 {[%clk 0:03:38.9]} 19. Bf4 {[%clk 0:03:41.8]}
19... Bxf4+ {[%clk 0:03:16.8]} 20. Nxf4 {[%clk 0:03:40.1]} 20... c6 {[%clk
0:03:15.2]} 21. Rxd8 {[%clk 0:03:38.5]} 21... Rxd8 {[%clk 0:03:13.7]} 22. Rd1
{[%clk 0:03:38.4]} 22... Kc7 {[%clk 0:03:11.7]} 23. Rxd8 {[%clk 0:03:36.6]}
23... Kxd8 {[%clk 0:03:11.6]} 24. c3 {[%clk 0:03:33.6]} 24... Ke7 {[%clk
0:03:07.5]} 25. Kd2 {[%clk 0:03:32.5]} 25... Kd6 {[%clk 0:03:00.3]} 26. Ke3
{[%clk 0:03:31.3]} 26... c4 {[%clk 0:02:56.1]} 27. Kd4 {[%clk 0:03:26.9]} 27...
c5+ {[%clk 0:02:51.3]} 28. Ke3 {[%clk 0:03:25.8]} 28... Bb7 {[%clk 0:02:49.2]}
29. a3 {[%clk 0:03:23.8]} 29... Ke5 {[%clk 0:02:47]} 30. Nh5 {[%clk 0:03:21.1]}
30... g6 {[%clk 0:02:44.5]} 31. f4+ {[%clk 0:03:14.7]} 31... Ke6 {[%clk
0:02:42.1]} 32. Ng3 {[%clk 0:03:13.4]} 32... Bc8 {[%clk 0:02:38.4]} 33. Ne2
{[%clk 0:03:07.3]} 33... Kd6 {[%clk 0:02:36.5]} 34. Kf3 {[%clk 0:03:04.1]} 34...
Bb7 {[%clk 0:02:34.9]} 35. Ng3 {[%clk 0:03:00.5]} 35... Ke6 {[%clk 0:02:30.9]}
36. Ke3 {[%clk 0:02:58.5]} 36... h6 {[%clk 0:02:25.2]} 37. Ne2 {[%clk
0:02:52.9]} 37... Bc8 {[%clk 0:02:21.5]} 38. Ng1 {[%clk 0:02:50.1]} 38... Kd6
{[%clk 0:02:19.7]} 39. f5 {[%clk 0:02:48.1]} 39... Bd7 {[%clk 0:01:57.2]} 40.
Kf4 {[%clk 0:02:45.7]} 40... Bc8 {[%clk 0:01:53.2]} 41. Nf3 {[%clk 0:02:43.6]}
41... a5 {[%clk 0:01:51.7]} 42. e5+ {[%clk 0:02:42]} 42... Kd5 {[%clk
0:01:49.8]} 43. e6 {[%clk 0:02:24.6]} 43... Bxe6 {[%clk 0:01:02.6]} 44. fxe6
{[%clk 0:02:21.8]} 44... fxe6 {[%clk 0:01:02.5]} 45. g5 {[%clk 0:02:16.6]} 45...
hxg5+ {[%clk 0:00:57.2]} 46. hxg5 {[%clk 0:02:15.6]} 46... b4 {[%clk 0:00:55.6]}
47. Ne5 {[%clk 0:02:13.8]} 47... a4 {[%clk 0:00:53.8]} 48. Nxg6 {[%clk
0:02:11.7]} 1-0

[Event "Live Chess"]
[Site "Chess.com"]
[Date "2023.05.20"]
[Round "-"]
[White "kerryman1969"]
[Black "lucaskk818"]
[Result "0-1"]
[WhiteElo "1146"]
[BlackElo "1892"]
[TimeControl "300"]
[EndTime "11:17:24 PDT"]
[Termination "lucaskk818 won on time"]

1. e4 {[%clk 0:04:55.1]} 1... c5 {[%clk 0:04:59.5]} 2. Nc3 {[%clk 0:04:51]} 2...
a6 {[%clk 0:04:57.4]} 3. f4 {[%clk 0:04:46.7]} 3... b5 {[%clk 0:04:53.4]} 4. Nf3
{[%clk 0:04:42.7]} 4... Bb7 {[%clk 0:04:52.2]} 5. d3 {[%clk 0:04:38.7]} 5... d5
{[%clk 0:04:45.7]} 6. e5 {[%clk 0:04:35]} 6... e6 {[%clk 0:04:40.9]} 7. Be2
{[%clk 0:04:28.5]} 7... Ne7 {[%clk 0:04:34.3]} 8. O-O {[%clk 0:04:24.7]} 8...
Nf5 {[%clk 0:04:27.7]} 9. g4 {[%clk 0:04:19.4]} 9... Nh4 {[%clk 0:04:22.9]} 10.
Be3 {[%clk 0:04:13]} 10... h5 {[%clk 0:04:15.4]} 11. g5 {[%clk 0:04:08.3]} 11...
Nxf3+ {[%clk 0:04:05]} 12. Bxf3 {[%clk 0:04:04.7]} 12... Qc7 {[%clk 0:04:01.1]}
13. Bxh5 {[%clk 0:03:58.9]} 13... d4 {[%clk 0:03:58.2]} 14. Bf2 {[%clk
0:03:50.8]} 14... dxc3 {[%clk 0:03:54.7]} 15. bxc3 {[%clk 0:02:23.1]} 15... Qc6
{[%clk 0:03:43.5]} 0-1

[Event "Live Chess"]
[Site "Chess.com"]
[Date "2023.05.20"]
[Round "-"]
[White "Larchikov"]
[Black "Ayursworld"]
[Result "1-0"]
[WhiteElo "2048"]
[BlackElo "1321"]
[TimeControl "300"]
[EndTime "11:17:29 PDT"]
[Termination "Larchikov won by checkmate"]

1. d4 {[%clk 0:04:53.7]} 1... d5 {[%clk 0:04:57.4]} 2. Nf3 {[%clk 0:04:53.1]}
2... Nc6 {[%clk 0:04:53.7]} 3. c4 {[%clk 0:04:51.9]} 3... Bg4 {[%clk 0:04:48.9]}
4. Nc3 {[%clk 0:04:49.7]} 4... dxc4 {[%clk 0:04:41.2]} 5. e3 {[%clk 0:04:48.2]}
5... Nf6 {[%clk 0:04:36.3]} 6. Bxc4 {[%clk 0:04:46.5]} 6... e6 {[%clk
0:04:33.4]} 7. O-O {[%clk 0:04:45]} 7... Bb4 {[%clk 0:04:30.9]} 8. h3 {[%clk
0:04:41.6]} 8... Bxf3 {[%clk 0:04:28]} 9. Qxf3 {[%clk 0:04:41.5]} 9... O-O
{[%clk 0:04:24.6]} 10. Rd1 {[%clk 0:04:39.9]} 10... Bxc3 {[%clk 0:04:22]} 11.
bxc3 {[%clk 0:04:38.7]} 11... Qd6 {[%clk 0:04:19.1]} 12. a4 {[%clk 0:04:36.1]}
12... Nd5 {[%clk 0:04:16.4]} 13. Ba3 {[%clk 0:04:31.7]} 13... Qd7 {[%clk
0:04:01.8]} 14. Bxd5 {[%clk 0:04:30.1]} 14... exd5 {[%clk 0:03:56.2]} 15. Bxf8
{[%clk 0:04:27.6]} 15... Rxf8 {[%clk 0:03:53.9]} 16. a5 {[%clk 0:04:21.6]} 16...
a6 {[%clk 0:03:51.8]} 17. Rdb1 {[%clk 0:04:15.3]} 17... Rb8 {[%clk 0:03:46.3]}
18. Qe2 {[%clk 0:04:07.5]} 18... Qe6 {[%clk 0:03:40.8]} 19. f3 {[%clk
0:03:49.2]} 19... Re8 {[%clk 0:03:35.9]} 20. Kf2 {[%clk 0:03:45.1]} 20... Rb8
{[%clk 0:03:30.9]} 21. e4 {[%clk 0:03:35.3]} 21... dxe4 {[%clk 0:03:28.3]} 22.
Qxe4 {[%clk 0:03:31.7]} 22... Qc4 {[%clk 0:03:16.9]} 23. Ra3 {[%clk 0:03:16.1]}
23... g6 {[%clk 0:03:09]} 24. Qe2 {[%clk 0:02:53]} 24... Qd5 {[%clk 0:02:57.6]}
25. Qe4 {[%clk 0:02:30.9]} 25... Qc4 {[%clk 0:02:52.9]} 26. Rd1 {[%clk
0:02:16.3]} 26... Kf8 {[%clk 0:02:36.9]} 27. Qd3 {[%clk 0:02:05.3]} 27... Qe6
{[%clk 0:02:28.8]} 28. Raa1 {[%clk 0:01:36.9]} 28... Rd8 {[%clk 0:02:16.7]} 29.
Re1 {[%clk 0:01:27.9]} 29... Qf6 {[%clk 0:02:02.1]} 30. Re4 {[%clk 0:01:18.3]}
30... Qf5 {[%clk 0:01:37.4]} 31. g4 {[%clk 0:01:09.3]} 31... Qg5 {[%clk
0:01:33.2]} 32. f4 {[%clk 0:01:05.9]} 32... Qh4+ {[%clk 0:01:30.9]} 33. Qg3
{[%clk 0:01:03.8]} 33... Qxg3+ {[%clk 0:01:28.2]} 34. Kxg3 {[%clk 0:01:02.7]}
34... Re8 {[%clk 0:01:26.2]} 35. Rxe8+ {[%clk 0:01:01.2]} 35... Kxe8 {[%clk
0:01:24.4]} 36. d5 {[%clk 0:01:00.6]} 36... Ne7 {[%clk 0:01:22.2]} 37. c4 {[%clk
0:00:59.5]} 37... Kd7 {[%clk 0:01:20.1]} 38. Rb1 {[%clk 0:00:58.9]} 38... Kc8
{[%clk 0:01:17.8]} 39. h4 {[%clk 0:00:57.9]} 39... Ng8 {[%clk 0:01:08.3]} 40. g5
{[%clk 0:00:54.9]} 40... Ne7 {[%clk 0:01:04.9]} 41. Kg4 {[%clk 0:00:51.2]} 41...
Nf5 {[%clk 0:01:03.6]} 42. c5 {[%clk 0:00:46]} 42... Ne3+ {[%clk 0:01:01.8]} 43.
Kf3 {[%clk 0:00:44.7]} 43... Nxd5 {[%clk 0:01:00.5]} 44. Rd1 {[%clk 0:00:38.2]}
44... c6 {[%clk 0:00:58.9]} 45. Rd2 {[%clk 0:00:32.9]} 45... Ne7 {[%clk
0:00:52.1]} 46. Ke4 {[%clk 0:00:30.3]} 46... Nf5 {[%clk 0:00:50.7]} 47. Ke5
{[%clk 0:00:24.1]} 47... Ne7 {[%clk 0:00:48.8]} 48. Kf6 {[%clk 0:00:22.6]} 48...
Nd5+ {[%clk 0:00:47.5]} 49. Kxf7 {[%clk 0:00:20.8]} 49... Nxf4 {[%clk
0:00:45.6]} 50. Kg7 {[%clk 0:00:20.4]} 50... Ne6+ {[%clk 0:00:34.8]} 51. Kxh7
{[%clk 0:00:19.3]} 51... Nf4 {[%clk 0:00:33]} 52. Rf2 {[%clk 0:00:17.5]} 52...
Ne6 {[%clk 0:00:29.9]} 53. Rf6 {[%clk 0:00:16.4]} 53... Nxc5 {[%clk 0:00:27.7]}
54. Kxg6 {[%clk 0:00:15.6]} 54... Ne4 {[%clk 0:00:26.2]} 55. Kf7 {[%clk
0:00:14.8]} 55... Nxf6 {[%clk 0:00:24]} 56. Kxf6 {[%clk 0:00:14.7]} 56... Kd8
{[%clk 0:00:22.5]} 57. g6 {[%clk 0:00:14.6]} 57... Ke8 {[%clk 0:00:21]} 58. g7
{[%clk 0:00:14.5]} 58... Kd7 {[%clk 0:00:18.7]} 59. g8=Q {[%clk 0:00:14.4]}
59... c5 {[%clk 0:00:17.1]} 60. h5 {[%clk 0:00:14.3]} 60... c4 {[%clk
0:00:16.1]} 61. h6 {[%clk 0:00:14.2]} 61... c3 {[%clk 0:00:15]} 62. h7 {[%clk
0:00:14.1]} 62... c2 {[%clk 0:00:13.9]} 63. h8=Q {[%clk 0:00:14]} 63... c1=Q
{[%clk 0:00:12.7]} 64. Qhg7+ {[%clk 0:00:13.4]} 64... Kc6 {[%clk 0:00:11.8]} 65.
Qe6+ {[%clk 0:00:12.6]} 65... Kb5 {[%clk 0:00:10.7]} 66. Qd5+ {[%clk 0:00:11.1]}
66... Ka4 {[%clk 0:00:09.8]} 67. Qg4+ {[%clk 0:00:10.1]} 67... Qc4 {[%clk
0:00:07.8]} 68. Qdxc4+ {[%clk 0:00:08.5]} 68... Ka3 {[%clk 0:00:06.9]} 69. Qf3+
{[%clk 0:00:07.5]} 69... Kb2 {[%clk 0:00:06]} 70. Qfb3+ {[%clk 0:00:07.4]} 70...
Ka1 {[%clk 0:00:04.9]} 71. Qcc2 {[%clk 0:00:07.3]} 71... b6 {[%clk 0:00:01.8]}
72. Qba2# {[%clk 0:00:07.2]} 1-0

[Event "Live Chess"]
[Site "Chess.com"]
[Date "2023.05.20"]
[Round "-"]
[White "DRS44"]
[Black "Davidagye"]
[Result "0-1"]
[WhiteElo "1399"]
[BlackElo "1682"]
[TimeControl "300"]
[EndTime "11:17:45 PDT"]
[Termination "Davidagye won by resignation"]

1. e4 {[%clk 0:04:50.9]} 1... e5 {[%clk 0:04:59.1]} 2. Nc3 {[%clk 0:04:46.3]}
2... Nf6 {[%clk 0:04:57.1]} 3. f4 {[%clk 0:04:42.9]} 3... d5 {[%clk 0:04:55]} 4.
fxe5 {[%clk 0:04:39.1]} 4... Nxe4 {[%clk 0:04:54.2]} 5. d3 {[%clk 0:04:36.3]}
5... Qh4+ {[%clk 0:04:48.5]} 6. g3 {[%clk 0:04:29.6]} 6... Nxg3 {[%clk
0:04:29.1]} 7. Nf3 {[%clk 0:04:25.2]} 7... Qh5 {[%clk 0:04:25.4]} 8. Nxd5 {[%clk
0:04:06.2]} 8... Na6 {[%clk 0:04:05.6]} 9. d4 {[%clk 0:03:20.6]} 9... Nxf1
{[%clk 0:03:59.3]} 10. Rxf1 {[%clk 0:02:53.6]} 10... Bg4 {[%clk 0:03:40.3]} 11.
Qd3 {[%clk 0:01:59]} 11... O-O-O {[%clk 0:03:34.4]} 12. Qc3 {[%clk 0:01:25.4]}
12... Rxd5 {[%clk 0:03:29.4]} 0-1

[Event "Live Chess"]
[Site "Chess.com"]
[Date "2023.05.20"]
[Round "-"]
[White "Salpingidis"]
[Black "JamesWallman"]
[Result "1-0"]
[WhiteElo "2309"]
[BlackElo "769"]
[TimeControl "300"]
[EndTime "11:17:55 PDT"]
[Termination "Salpingidis won on time"]

1. d4 {[%clk 0:04:58]} 1... d5 {[%clk 0:04:56.4]} 2. c4 {[%clk 0:04:57.2]} 2...
e6 {[%clk 0:04:51.4]} 3. Nc3 {[%clk 0:04:57.1]} 3... Nf6 {[%clk 0:04:46.4]} 4.
cxd5 {[%clk 0:04:48.5]} 4... exd5 {[%clk 0:04:41.4]} 5. Bg5 {[%clk 0:04:47.9]}
5... c6 {[%clk 0:04:26.5]} 6. e3 {[%clk 0:04:45.9]} 6... Be7 {[%clk 0:04:20.4]}
7. Bd3 {[%clk 0:04:45.1]} 7... O-O {[%clk 0:04:15.7]} 8. Nge2 {[%clk 0:04:44.6]}
8... Bg4 {[%clk 0:04:10.6]} 9. f3 {[%clk 0:04:42.8]} 9... Bh5 {[%clk 0:04:07]}
10. O-O {[%clk 0:04:42.4]} 10... Bg6 {[%clk 0:04:02.7]} 11. e4 {[%clk
0:04:39.6]} 11... dxe4 {[%clk 0:03:58.3]} 12. fxe4 {[%clk 0:04:39.5]} 12... Nbd7
{[%clk 0:03:45]} 13. Kh1 {[%clk 0:04:36.5]} 13... h6 {[%clk 0:03:35.9]} 14. Bh4
{[%clk 0:04:32.7]} 14... Ng4 {[%clk 0:03:22.7]} 15. Bxe7 {[%clk 0:04:26.2]}
15... Qxe7 {[%clk 0:03:17.1]} 16. Qd2 {[%clk 0:04:25.7]} 16... Ngf6 {[%clk
0:03:06.5]} 17. Nf4 {[%clk 0:04:16.4]} 17... Rad8 {[%clk 0:02:58.1]} 18. Nxg6
{[%clk 0:04:14.3]} 18... fxg6 {[%clk 0:02:53]} 19. e5 {[%clk 0:04:13.4]} 19...
Nh7 {[%clk 0:02:34.2]} 20. Bxg6 {[%clk 0:04:11.1]} 20... Nxe5 {[%clk 0:02:24.1]}
21. Bxh7+ {[%clk 0:04:10.3]} 21... Kxh7 {[%clk 0:02:16.2]} 22. Qc2+ {[%clk
0:04:09.8]} 22... Kh8 {[%clk 0:02:01.1]} 23. dxe5 {[%clk 0:04:07.9]} 23... Qe6
{[%clk 0:01:55.7]} 24. Rxf8+ {[%clk 0:03:59.4]} 24... Rxf8 {[%clk 0:01:51.1]}
25. Re1 {[%clk 0:03:59.3]} 25... Qg4 {[%clk 0:01:28.4]} 26. h3 {[%clk 0:03:54]}
26... Qg3 {[%clk 0:01:23.2]} 27. Qe4 {[%clk 0:03:33.1]} 27... Rf2 {[%clk
0:01:13.9]} 28. Ne2 {[%clk 0:03:23.4]} 28... Qg5 {[%clk 0:00:37.4]} 29. e6
{[%clk 0:03:13.3]} 29... Rf1+ {[%clk 0:00:29.3]} 30. Rxf1 {[%clk 0:03:11.3]}
30... Qe7 {[%clk 0:00:21.9]} 31. Rf7 {[%clk 0:03:07.7]} 1-0